[Event "55th Rubinstein Memorial-B 2019"]
[Site "Polanica-Zdroj"]
[Date "2019.08.22"]
[Round "6.5"]
[White "Meizlin, Yaacov"]
[Black "Dembowski, Andrzej"]
[Result "1-0"]
[ECO "B10"]
[WhiteElo "2027"]
[BlackElo "1840"]
[Annotator "NA"]
[PlyCount "107"]
[EventDate "2019.08.17"]
[EventType "swiss"]
[EventCountry "POL"]
[SourceTitle "playchess.com"]
[Source "ChessBase"]
[SourceQuality "1"]
[TimeControl "40/5400+30:1800+30"]

1. e4 {[%emt 0:00:00]} c6 {[%emt 0:00:11]} 2. Nc3 {[%emt 0:00:00]} g6 {[%emt 0:00:15]} 3. d4 {[%emt 0:00:46]} Bg7 {[%emt 0:00:19]} 4. Be3 {[%emt 0:00:56]} d6 {[%emt 0:00:37]} 5. Qd2 {[%emt 0:00:32]} Nd7 {[%emt 0:01:24]} 6. f3 {[%emt 0:01:06]} b5 {[%emt 0:01:16]} 7. d5 {[%emt 0:05:28]} cxd5 {[%emt 0:00:32]} 8. Qxd5 {[%emt 0:00:41]} Rb8 {[%emt 0:02:27]} 9. Bxb5 {[%emt 0:14:47]} Ngf6 {[%emt 0:00:30]} 10. Qd2 {[%emt 0:02:15]} a6 {[%emt 0:00:34]} 11. Bxd7+ {[%emt 0:00:25]} Bxd7 {[%emt 0:01:08]} 12. Nd1 {[%emt 0:00:29]} O-O {[%emt 0:00:31]} 13. Ne2 {[%emt 0:00:57]} Qc7 {[%emt 0:02:02]} 14. O-O {[%emt 0:01:20]} Rfc8 {[%emt 0:00:09]} 15. Rc1 {[%emt 0:00:47]} Be6 {[%emt 0:09:20]} 16. b3 {[%emt 0:02:08]} d5 {[%emt 0:00:19]} 17. e5 {[%emt 0:08:55]} Nd7 {[%emt 0:00:41]} 18. f4 {[%emt 0:00:14]} Nc5 {[%emt 0:02:09]} 19. Nd4 {[%emt 0:03:07]} Bd7 {[%emt 0:00:45]} 20. Nf2 {[%emt 0:04:47]} e6 {[%emt 0:01:31]} 21. c4 {[%emt 0:00:16]} Qb7 {[%emt 0:01:25]} 22. cxd5 {[%emt 0:04:25]} Qxd5 {[%emt 0:00:29]} 23. Nf3 {[%emt 0:03:46]} Qxd2 {[%emt 0:02:21]} 24. Nxd2 {[%emt 0:00:01]} Bf8 {[%emt 0:00:18]} 25. Rc3 {[%emt 0:09:47]} Nb7 {[%emt 0:02:10]} 26. Rfc1 {[%emt 0:00:41]} Rxc3 {[%emt 0:01:17]} 27. Rxc3 {[%emt 0:02:24]} Rc8 {[%emt 0:01:18]} 28. Rxc8 {[%emt 0:00:25]} Bxc8 {[%emt 0:00:07]} 29. Nfe4 {[%emt 0:00:06]} Kg7 {[%emt 0:01:23]} 30. Bb6 {[%emt 0:02:46]} Bd7 {[%emt 0:00:37]} 31. Kf2 {[%emt 0:02:05]} Be7 {[%emt 0:00:26]} 32. Ke3 {[%emt 0:00:31]} Nd8 {[%emt 0:00:38]} 33. g4 {[%emt 0:08:53]} h6 {[%emt 0:02:48]} 34. Nf6 {[%emt 0:02:32]} Bc6 {[%emt 0:00:28]} 35. Nde4 {[%emt 0:00:22]} Nb7 {[%emt 0:00:25]} 36. g5 {[%emt 0:00:40]} h5 {[%emt 0:01:15]} 37. Kd4 {[%emt 0:00:26]} Ba3 {[%emt 0:01:41]} 38. Nd2 {[%emt 0:10:13]} a5 {[%emt 0:01:40]} 39. Nfe4 {[%emt 0:01:15]} Bc1 {[%emt 0:01:26]} 40. h3 {[%emt 0:00:00]} Bxe4 {[%emt 0:00:00]} 41. Nxe4 {[%emt 0:05:44]} Bxf4 {[%emt 0:01:41]} 42. Bc7 {[%emt 0:00:08]} Kf8 {[%emt 0:01:22]} 43. Kc4 {[%emt 0:03:58]} Ke7 {[%emt 0:01:21]} 44. Kb5 {[%emt 0:00:34]} Kd7 {[%emt 0:00:49]} 45. Kb6 {[%emt 0:04:18]} Kc8 {[%emt 0:08:01]} 46. a4 {[%emt 0:02:37]} Be3+ {[%emt 0:10:09]} 47. Kc6 {[%emt 0:00:07]} Nd8+ {[%emt 0:00:51]} 48. Bxd8 {[%emt 0:00:32]} Kxd8 {[%emt 0:00:13]} 49. Kb5 {[%emt 0:00:33]} Bd4 {[%emt 0:01:02]} 50. Kxa5 {[%emt 0:04:16]} Bxe5 {[%emt 0:00:37]} 51. Kb6 {[%emt 0:00:13]} Kd7 {[%emt 0:01:01]} 52. b4 {[%emt 0:01:11]} Bd4+ {[%emt 0:00:22]} 53. Kb7 {[%emt 0:00:20]} e5 {[%emt 0:01:08]} 54. a5 {[%emt 0:00:35]} 1-0

[Event "55th Rubinstein Memorial-B 2019"]
[Site "Polanica-Zdroj"]
[Date "2019.08.22"]
[Round "6.6"]
[White "Drazek, Wladyslaw"]
[Black "Margovsky, Naum"]
[Result "0-1"]
[ECO "D03"]
[WhiteElo "1864"]
[BlackElo "2002"]
[Annotator "NA"]
[PlyCount "56"]
[EventDate "2019.08.17"]
[EventType "swiss"]
[EventCountry "POL"]
[SourceTitle "playchess.com"]
[Source "ChessBase"]
[SourceQuality "1"]
[TimeControl "40/5400+30:1800+30"]

1. d4 d5 2. Nf3 Nf6 3. Bg5 c6 4. e3 Bg4 5. c3 Nbd7 6. Nbd2 Ne4 7. Bf4 e6 8. h3 Bh5 9. Qc2 f5 10. Bd3 Be7 11. Ne5 O-O 12. g4 Nxe5 13. gxh5 Nxd3+ 14. Qxd3 Bh4 15. Nxe4 fxe4 16. Qe2 Bg5 17. Bg3 Rf3 18. O-O-O Qe8 19. Kb1 Qxh5 20. h4 Bf6 21. Bf4 e5 22. dxe5 Bxe5 23. Bxe5 Qxe5 24. Rdg1 Raf8 25. Rg2 Qf5 26. Rhh2 Rh3 27. h5 Qf3 28. Qd2 Qxh5 0-1

[Event "55th Rubinstein Memorial-B 2019"]
[Site "Polanica-Zdroj"]
[Date "2019.08.23"]
[Round "7.1"]
[White "Shilov, Sergej"]
[Black "Kwiecien, Zbigniew"]
[Result "1-0"]
[ECO "C10"]
[WhiteElo "2129"]
[BlackElo "2024"]
[Annotator "NA"]
[PlyCount "35"]
[EventDate "2019.08.17"]
[EventType "swiss"]
[EventCountry "POL"]
[SourceTitle "playchess.com"]
[Source "ChessBase"]
[SourceQuality "1"]
[TimeControl "40/5400+30:1800+30"]

1. e4 {[%emt 0:00:00]} e6 {[%emt 0:00:00]} 2. d4 {[%emt 0:00:04]} d5 {[%emt 0:00:02]} 3. Nc3 {[%emt 0:00:06]} a6 {[%emt 0:00:35]} 4. Nf3 {[%emt 0:03:24]} Ne7 {[%emt 0:09:16]} 5. Bd3 {[%emt 0:01:11]} g6 {[%emt 0:03:54]} 6. Bg5 {[%emt 0:09:42]} Bg7 {[%emt 0:03:54]} 7. Qd2 {[%emt 0:13:36]} h6 {[%emt 0:01:03]} 8. Bf4 {[%emt 0:00:29]} g5 {[%emt 0:04:06]} 9. Be5 {[%emt 0:04:25]} f6 {[%emt 0:01:18]} 10. Bg3 {[%emt 0:00:02]} dxe4 {[%emt 0:07:46]} 11. Nxe4 {[%emt 0:00:08]} f5 {[%emt 0:00:31]} 12. Nexg5 {[%emt 0:00:02]} hxg5 {[%emt 0:00:38]} 13. Qxg5 {[%emt 0:00:01]} Bh6 {[%emt 0:01:54]} 14. Qf6 {[%emt 0:01:38]} Rh7 {[%emt 0:02:10]} 15. Ne5 {[%emt 0:08:15]} Qxd4 {[%emt 0:06:43]} 16. Rd1 {[%emt 0:00:47]} Qb6 {[%emt 0:02:35]} 17. Be2 {[%emt 0:02:18]} Bf8 {[%emt 0:02:10]} 18. Bh5+ {[%emt 0:00:16] Ng8 Ra1+ Rh8} 1-0

[Event "55th Rubinstein Memorial-B 2019"]
[Site "Polanica-Zdroj"]
[Date "2019.08.23"]
[Round "7.2"]
[White "Margovsky, Naum"]
[Black "Janocha, Wieslaw"]
[Result "1-0"]
[ECO "D15"]
[WhiteElo "2002"]
[BlackElo "2264"]
[Annotator "NA"]
[PlyCount "75"]
[EventDate "2019.08.17"]
[EventType "swiss"]
[EventCountry "POL"]
[SourceTitle "playchess.com"]
[Source "ChessBase"]
[SourceQuality "1"]
[TimeControl "40/5400+30:1800+30"]

1. d4 {[%emt 0:00:08]} d5 {[%emt 0:00:00]} 2. c4 {[%emt 0:00:09]} c6 {[%emt 0:00:17]} 3. Nf3 {[%emt 0:00:35]} Nf6 {[%emt 0:00:11]} 4. Nc3 {[%emt 0:00:17]} dxc4 {[%emt 0:00:32]} 5. e3 {[%emt 0:00:46]} b5 {[%emt 0:02:28]} 6. a4 {[%emt 0:00:20]} b4 {[%emt 0:11:22]} 7. Na2 {[%emt 0:00:19]} a5 {[%emt 0:00:37]} 8. Bxc4 {[%emt 0:00:13]} e6 {[%emt 0:00:52]} 9. O-O {[%emt 0:01:00]} Be7 {[%emt 0:07:38]} 10. Bd2 {[%emt 0:01:30]} O-O {[%emt 0:00:47]} 11. Nc1 {[%emt 0:00:22]} c5 {[%emt 0:00:21]} 12. dxc5 {[%emt 0:03:15]} Bxc5 {[%emt 0:00:26]} 13. Nb3 {[%emt 0:00:21]} Bb6 {[%emt 0:00:16]} 14. Qe2 {[%emt 0:01:03]} Bb7 {[%emt 0:00:24]} 15. Rfd1 {[%emt 0:00:47]} Qe7 {[%emt 0:02:26]} 16. Rac1 {[%emt 0:01:28]} Nbd7 {[%emt 0:05:30]} 17. Bb5 {[%emt 0:02:05]} Rfc8 {[%emt 0:09:47]} 18. Be1 {[%emt 0:03:03]} Bd5 {[%emt 0:11:32]} 19. Nbd2 {[%emt 0:00:49]} Nc5 {[%emt 0:00:56]} 20. Nc4 {[%emt 0:01:49]} Bd8 {[%emt 0:03:31]} 21. Nd4 {[%emt 0:02:55]} e5 {[%emt 0:08:13]} 22. Nf5 {[%emt 0:00:42]} Qe6 {[%emt 0:00:37]} 23. Nfd6 {[%emt 0:00:45]} Nb3 {[%emt 0:02:03]} 24. Rc2 {[%emt 0:01:42]} Rcb8 {[%emt 0:07:55]} 25. f3 {[%emt 0:00:25]} e4 {[%emt 0:00:36]} 26. Bh4 {[%emt 0:04:15]} exf3 {[%emt 0:07:00]} 27. gxf3 {[%emt 0:01:32]} Qh3 {[%emt 0:00:02]} 28. e4 {[%emt 0:01:23]} Qxh4 {[%emt 0:00:10]} 29. exd5 {[%emt 0:01:52]} Nd4 {[%emt 0:00:08]} 30. Qg2 {[%emt 0:07:04]} g6 {[%emt 0:01:12]} 31. Rcd2 {[%emt 0:02:50]} Nxb5 {[%emt 0:00:33]} 32. axb5 {[%emt 0:00:34]} Nh5 {[%emt 0:02:58]} 33. Qg4 {[%emt 0:05:43]} Qf6 {[%emt 0:03:54]} 34. Re1 {[%emt 0:02:01]} a4 {[%emt 0:02:02]} 35. Ne4 {[%emt 0:04:41]} Qh4 {[%emt 0:00:12]} 36. Nf2 {[%emt 0:07:56]} Rxb5 {[%emt 0:01:56]} 37. Re8+ {[%emt 0:00:09]} Kg7 {[%emt 0:00:06]} 38. Qxh4 {[%emt 0:00:04]} 1-0

[Event "55th Rubinstein Memorial-B 2019"]
[Site "Polanica-Zdroj"]
[Date "2019.08.23"]
[Round "7.3"]
[White "Klimaszewski, Dariusz"]
[Black "Czuchnicki, Jan"]
[Result "1-0"]
[ECO "B40"]
[WhiteElo "2152"]
[BlackElo "1849"]
[Annotator "NA"]
[PlyCount "69"]
[EventDate "2019.08.17"]
[EventType "swiss"]
[EventCountry "POL"]
[SourceTitle "playchess.com"]
[Source "ChessBase"]
[SourceQuality "1"]
[TimeControl "40/5400+30:1800+30"]

1. e4 c5 2. Nf3 e6 3. d3 g6 4. g3 Bg7 5. Bg2 Nc6 6. O-O Nge7 7. Nbd2 O-O 8. Re1 d6 9. Nf1 Rb8 10. a4 a6 11. c3 b5 12. axb5 axb5 13. d4 cxd4 14. cxd4 d5 15. e5 Qb6 16. Ne3 h5 17. b3 Bb7 18. Bb2 Ra8 19. Qd2 Bh6 20. b4 Kh7 21. Bc3 Rxa1 22. Rxa1 Ra8 23. Rxa8 Bxa8 24. Bf1 Bb7 25. Qd3 Ba6 26. Nc2 Nc8 27. Nd2 N8a7 28. Nb3 Qd8 29. Nc5 Bc8 30. Na3 f6 31. Nxb5 fxe5 32. Nxa7 Nxa7 33. dxe5 Bf8 34. Ne4 Qc7 35. Nf6+ 1-0

[Event "55th Rubinstein Memorial-B 2019"]
[Site "Polanica-Zdroj"]
[Date "2019.08.23"]
[Round "7.4"]
[White "Marszk, Kazimierz"]
[Black "Fainberg, Boris"]
[Result "0-1"]
[ECO "C01"]
[WhiteElo "1829"]
[BlackElo "2030"]
[Annotator "NA"]
[PlyCount "80"]
[EventDate "2019.08.17"]
[EventType "swiss"]
[EventCountry "POL"]
[SourceTitle "playchess.com"]
[Source "ChessBase"]
[SourceQuality "1"]
[TimeControl "40/5400+30:1800+30"]

1. e4 {[%emt 0:00:31]} e6 {[%emt 0:00:00]} 2. d4 {[%emt 0:00:30]} d5 {[%emt 0:00:30]} 3. exd5 {[%emt 0:00:30]} exd5 {[%emt 0:00:30]} 4. Bd3 {[%emt 0:00:30]} c5 {[%emt 0:00:30]} 5. dxc5 {[%emt 0:00:30]} Bxc5 {[%emt 0:00:30]} 6. Nf3 {[%emt 0:00:32]} Nf6 {[%emt 0:02:40]} 7. O-O {[%emt 0:02:53]} O-O {[%emt 0:03:26]} 8. h3 Nc6 9. c3 {[%emt 0:17:13]} Qd6 {[%emt 0:37:55]} 10. Kh1 {[%emt 0:28:55]} Ne4 {[%emt 0:10:01]} 11. Ng5 {[%emt 0:16:58]} f5 {[%emt 0:08:58]} 12. Bxe4 {[%emt 0:03:08]} fxe4 {[%emt 0:06:29]} 13. b4 {[%emt 0:00:07]} Bb6 {[%emt 0:00:24]} 14. Nxe4 {[%emt 0:00:33]} Qe5 {[%emt 0:01:12]} 15. Nc5 {[%emt 0:00:29]} Nxb4 {[%emt 0:08:44]} 16. f4 {[%emt 0:07:33]} Qf6 {[%emt 0:00:11]} 17. cxb4 {[%emt 0:00:30]} Qxa1 {[%emt 0:00:30]} 18. Qxd5+ {[%emt 0:00:15]} Kh8 {[%emt 0:02:31]} 19. Nd2 {[%emt 0:01:24]} Qf6 {[%emt 0:03:39]} 20. Nf3 {[%emt 0:01:44]} Bxc5 {[%emt 0:02:26]} 21. Qxc5 {[%emt 0:01:10]} Bf5 {[%emt 0:00:52]} 22. Ne5 {[%emt 0:00:56]} b6 {[%emt 0:00:45]} 23. Qf2 Rac8 24. a3 {[%emt 0:04:22]} Rfd8 {[%emt 0:01:28]} 25. Qe3 {[%emt 0:01:41]} Qe6 {[%emt 0:02:12]} 26. g4 {[%emt 0:00:32]} Qd5+ {[%emt 0:00:10]} 27. Kg1 {[%emt 0:00:43]} Rc2 {[%emt 0:00:47]} 28. Rf2 {[%emt 0:01:55]} Rxf2 {[%emt 0:00:26]} 29. Kxf2 {[%emt 0:00:14]} Be6 {[%emt 0:00:38]} 30. f5 {[%emt 0:00:40]} Bg8 {[%emt 0:00:21]} 31. Kg3 {[%emt 0:00:40]} Qd4 {[%emt 0:01:12]} 32. Kf2 {[%emt 0:02:40]} Bb3 {[%emt 0:02:04]} 33. Nc6 {[%emt 0:03:01]} Qxe3+ {[%emt 0:00:20]} 34. Bxe3 {[%emt 0:00:02]} Rd7 {[%emt 0:00:39]} 35. Kg3 {[%emt 0:01:15]} Kg8 {[%emt 0:00:52]} 36. g5 {[%emt 0:00:35]} Rc7 {[%emt 0:01:13]} 37. b5 {[%emt 0:00:43]} Ba4 {[%emt 0:01:27]} 38. Nd4 Rc5 39. Kf4 Bxb5 40. h4 Be8 0-1

[Event "55th Rubinstein Memorial-B 2019"]
[Site "Polanica-Zdroj"]
[Date "2019.08.23"]
[Round "7.5"]
[White "Meizlin, Yaacov"]
[Black "Wasylkiewicz, Andrzej"]
[Result "1-0"]
[ECO "B01"]
[WhiteElo "2027"]
[BlackElo "1752"]
[Annotator "NA"]
[PlyCount "73"]
[EventDate "2019.08.17"]
[EventType "swiss"]
[EventCountry "POL"]
[SourceTitle "playchess.com"]
[Source "ChessBase"]
[SourceQuality "1"]
[TimeControl "40/5400+30:1800+30"]

1. e4 d5 2. exd5 Nf6 3. d4 Bg4 4. f3 Bf5 5. Bb5+ Nbd7 6. c4 a6 7. Bxd7+ Qxd7 8. Nc3 e6 9. g4 Bg6 10. dxe6 fxe6 11. Qa4 c6 12. Be3 Be7 13. Nge2 O-O 14. O-O Qc7 15. Nf4 Bf7 16. Nd3 Bd6 17. Rf2 Rad8 18. c5 Be7 19. Ne5 Be8 20. Qc2 Nd7 21. f4 Nxe5 22. dxe5 Qa5 23. Qa4 Qxa4 24. Nxa4 Rd3 25. Re2 Bg6 26. Kf2 Be4 27. Rd2 g5 28. Rxd3 Bxd3 29. Kg3 gxf4+ 30. Bxf4 Bb5 31. Nb6 Bxc5 32. Nd7 Bf2+ 33. Kf3 Be2+ 34. Kxf2 Rxf4+ 35. Kxe2 Kg7 36. Nf6 Rc4 37. Kf3 1-0

[Event "55th Rubinstein Memorial-B 2019"]
[Site "Polanica-Zdroj"]
[Date "2019.08.24"]
[Round "8.1"]
[White "Fainberg, Boris"]
[Black "Shilov, Sergej"]
[Result "0-1"]
[ECO "C63"]
[WhiteElo "2030"]
[BlackElo "2129"]
[Annotator "NA"]
[PlyCount "79"]
[EventDate "2019.08.17"]
[EventType "swiss"]
[EventCountry "POL"]
[SourceTitle "playchess.com"]
[Source "ChessBase"]
[SourceQuality "1"]
[TimeControl "40/5400+30:1800+30"]

1. e4 {[%emt 0:00:00]} e5 {[%emt 0:00:12]} 2. Nf3 {[%emt 0:00:18]} Nc6 {[%emt 0:00:09]} 3. Bb5 {[%emt 0:00:29]} f5 {[%emt 0:00:06]} 4. Nc3 {[%emt 0:02:05]} Nf6 {[%emt 0:00:37]} 5. d3 {[%emt 0:06:32]} fxe4 {[%emt 0:01:34]} 6. dxe4 {[%emt 0:00:08]} Bb4 {[%emt 0:00:07]} 7. Qd3 {[%emt 0:10:31]} Qe7 {[%emt 0:04:34]} 8. Bd2 {[%emt 0:20:05]} Bxc3 {[%emt 0:01:46]} 9. Bxc3 {[%emt 0:00:06]} d6 {[%emt 0:00:10]} 10. O-O {[%emt 0:05:01]} Nh5 {[%emt 0:11:50]} 11. Bd2 {[%emt 0:03:52]} O-O {[%emt 0:12:14]} 12. Bg5 {[%emt 0:03:07]} Qe8 {[%emt 0:00:24]} 13. Ne1 {[%emt 0:10:22]} Qg6 {[%emt 0:01:59]} 14. Bd2 {[%emt 0:03:29]} Nd4 {[%emt 0:01:08]} 15. Bc4+ {[%emt 0:00:25]} Kh8 {[%emt 0:03:55]} 16. c3 {[%emt 0:00:26]} Ne6 {[%emt 0:00:15]} 17. Bxe6 {[%emt 0:01:13]} Bxe6 {[%emt 0:00:09]} 18. f3 {[%emt 0:06:25]} Rad8 {[%emt 0:01:07]} 19. Be3 {[%emt 0:03:12]} Qf7 {[%emt 0:03:23]} 20. b3 {[%emt 0:00:45]} b6 {[%emt 0:01:54]} 21. Rd1 {[%emt 0:02:39]} Qe7 {[%emt 0:01:22]} 22. Qe2 {[%emt 0:03:21]} c6 {[%emt 0:06:29]} 23. c4 {[%emt 0:03:55]} d5 {[%emt 0:07:32]} 24. cxd5 {[%emt 0:00:13]} cxd5 {[%emt 0:00:02]} 25. exd5 {[%emt 0:00:12]} Bxd5 {[%emt 0:00:01]} 26. Bc1 {[%emt 0:06:47]} Nf6 {[%emt 0:05:04]} 27. Bb2 {[%emt 0:01:11]} Rfe8 {[%emt 0:07:15]} 28. Nd3 {[%emt 0:00:39]} e4 {[%emt 0:00:22]} 29. fxe4 {[%emt 0:00:47]} Nxe4 {[%emt 0:01:21]} 30. Ne5 {[%emt 0:01:54]} Nf6 {[%emt 0:01:32]} 31. Qf2 {[%emt 0:00:44]} Rf8 {[%emt 0:01:38]} 32. Qe3 {[%emt 0:00:22]} Qb7 {[%emt 0:00:37]} 33. Rd2 {[%emt 0:01:10]} Rfe8 {[%emt 0:03:28]} 34. Qf4 {[%emt 0:01:48]} Qe7 {[%emt 0:05:53]} 35. Qh4 {[%emt 0:00:46]} Kg8 {[%emt 0:02:41]} 36. Rdf2 {[%emt 0:00:50]} Ne4 {[%emt 0:00:51]} 37. Qxe7 {[%emt 0:00:54]} Rxe7 {[%emt 0:00:01]} 38. Rc2 {[%emt 0:00:48]} Bb7 {[%emt 0:05:15]} 39. Re1 {[%emt 0:01:25]} Nf6 {[%emt 0:02:45]} 40. Rec1 {[%emt 0:01:04]} 0-1

[Event "55th Rubinstein Memorial-B 2019"]
[Site "Polanica-Zdroj"]
[Date "2019.08.24"]
[Round "8.2"]
[White "Klimaszewski, Dariusz"]
[Black "Meizlin, Yaacov"]
[Result "1/2-1/2"]
[ECO "B40"]
[WhiteElo "2152"]
[BlackElo "2027"]
[Annotator "NA"]
[PlyCount "103"]
[EventDate "2019.08.17"]
[EventType "swiss"]
[EventCountry "POL"]
[SourceTitle "playchess.com"]
[Source "ChessBase"]
[SourceQuality "1"]
[TimeControl "40/5400+30:1800+30"]

1. e4 {[%emt 0:00:03]} c5 {[%emt 0:00:00]} 2. Nf3 {[%emt 0:00:31]} e6 {[%emt 0:00:00]} 3. d4 {[%emt 0:00:23]} cxd4 {[%emt 0:00:02]} 4. Nxd4 {[%emt 0:00:07]} Nf6 {[%emt 0:00:19]} 5. Nc3 {[%emt 0:00:15]} Nc6 {[%emt 0:00:37]} 6. Ndb5 {[%emt 0:01:15]} Bb4 {[%emt 0:00:21]} 7. a3 {[%emt 0:00:30]} Bxc3+ {[%emt 0:00:13]} 8. Nxc3 {[%emt 0:00:08]} d5 {[%emt 0:00:16]} 9. exd5 {[%emt 0:00:11]} Nxd5 {[%emt 0:00:20]} 10. Bd2 {[%emt 0:00:41]} Nxc3 {[%emt 0:05:25]} 11. Bxc3 {[%emt 0:00:10]} Qxd1+ {[%emt 0:00:21]} 12. Rxd1 {[%emt 0:00:08]} e5 {[%emt 0:00:13]} 13. Bb5 {[%emt 0:00:47]} f6 {[%emt 0:04:37]} 14. O-O {[%emt 0:00:38]} Bd7 {[%emt 0:07:28]} 15. f4 {[%emt 0:02:38]} e4 {[%emt 0:06:34]} 16. Rfe1 {[%emt 0:08:49]} O-O-O {[%emt 0:01:06]} 17. Rxe4 {[%emt 0:03:44]} Bf5 {[%emt 0:01:57]} 18. Rxd8+ {[%emt 0:00:23]} Rxd8 {[%emt 0:00:30]} 19. Re2 {[%emt 0:03:31]} a6 {[%emt 0:06:00]} 20. Bxc6 {[%emt 0:03:07]} bxc6 {[%emt 0:00:01]} 21. Ba5 {[%emt 0:01:16]} Rd5 {[%emt 0:04:09]} 22. Be1 {[%emt 0:02:07]} Kd7 {[%emt 0:00:17]} 23. h3 {[%emt 0:00:18]} Rd1 {[%emt 0:02:59]} 24. Kf2 {[%emt 0:00:18]} Rc1 {[%emt 0:00:12]} 25. c3 {[%emt 0:02:37]} Rc2 {[%emt 0:00:07]} 26. Rxc2 Bxc2 27. Ke3 {[%emt 0:01:05]} Bb3 {[%emt 0:02:47]} 28. Kd4 {[%emt 0:00:39]} a5 {[%emt 0:00:14]} 29. c4 {[%emt 0:00:43]} a4 {[%emt 0:00:05]} 30. Bb4 {[%emt 0:01:20]} h5 {[%emt 0:02:55]} 31. h4 {[%emt 0:00:58]} Ke6 {[%emt 0:00:59]} 32. Bf8 {[%emt 0:02:15]} Kf7 {[%emt 0:00:59]} 33. Bd6 {[%emt 0:02:33]} Ke6 {[%emt 0:01:49]} 34. Kc5 {[%emt 0:01:48]} g6 {[%emt 0:03:00]} 35. g3 {[%emt 0:00:43]} f5 {[%emt 0:02:38]} 36. Be5 {[%emt 0:01:04]} Kd7 {[%emt 0:00:12]} 37. Bc3 {[%emt 0:00:59]} Kc7 {[%emt 0:03:14]} 38. Bd4 {[%emt 0:00:46]} Kd7 {[%emt 0:09:01]} 39. Be5 {[%emt 0:00:21]} Ke6 {[%emt 0:07:55]} 40. Kxc6 {[%emt 0:00:58]} Bxc4 {[%emt 0:00:02]} 41. b4 {[%emt 0:00:23]} axb3 {[%emt 0:00:12]} 42. a4 {[%emt 0:00:07]} Bd3 {[%emt 0:11:43]} 43. a5 {[%emt 0:00:17]} Be2 {[%emt 0:00:15]} 44. Kb7 {[%emt 0:04:20]} Kd5 {[%emt 0:08:53]} 45. a6 {[%emt 0:00:07]} Ke4 {[%emt 0:03:55]} 46. a7 {[%emt 0:00:12]} Bc4 {[%emt 0:00:01]} 47. Kb6 {[%emt 0:00:23]} Bd5 {[%emt 0:00:02]} 48. Kc5 {[%emt 0:00:09]} Ba8 {[%emt 0:00:33]} 49. Kb4 {[%emt 0:00:15]} Bd5 {[%emt 0:03:22]} 50. a8=Q {[%emt 0:00:31]} Bxa8 {[%emt 0:00:02]} 51. Kxb3 {[%emt 0:00:11]} Kf3 {[%emt 0:00:05]} 52. Bf6 {[%emt 0:00:06]} 1/2-1/2

[Event "55th Rubinstein Memorial-B 2019"]
[Site "Polanica-Zdroj"]
[Date "2019.08.24"]
[Round "8.3"]
[White "Margovsky, Naum"]
[Black "Marusenko, Petr"]
[Result "1-0"]
[ECO "D30"]
[WhiteElo "2002"]
[BlackElo "2124"]
[Annotator "NA"]
[PlyCount "45"]
[EventDate "2019.08.17"]
[EventType "swiss"]
[EventCountry "POL"]
[SourceTitle "playchess.com"]
[Source "ChessBase"]
[SourceQuality "1"]
[TimeControl "40/5400+30:1800+30"]

1. d4 d5 2. c4 e6 3. Nf3 c5 4. e3 Nf6 5. Nc3 Nc6 6. Be2 dxc4 7. Bxc4 a6 8. O-O b5 9. Be2 cxd4 10. exd4 Be7 11. Be3 O-O 12. Rc1 Bb7 13. Ne5 Rc8 14. Bf3 Na5 15. Bxb7 Nxb7 16. Qf3 Na5 17. Rfd1 Qd6 18. Bf4 Qb6 19. Bg5 Qb7 20. Qxb7 Nxb7 21. Bxf6 Bxf6 22. Ne4 Rfd8 23. Nc6 1-0

[Event "55th Rubinstein Memorial-B 2019"]
[Site "Polanica-Zdroj"]
[Date "2019.08.24"]
[Round "8.4"]
[White "Kwiecien, Zbigniew"]
[Black "Janocha, Wieslaw"]
[Result "0-1"]
[ECO "C56"]
[WhiteElo "2024"]
[BlackElo "2264"]
[Annotator "NA"]
[PlyCount "52"]
[EventDate "2019.08.17"]
[EventType "swiss"]
[EventCountry "POL"]
[SourceTitle "playchess.com"]
[Source "ChessBase"]
[SourceQuality "1"]
[TimeControl "40/5400+30:1800+30"]

1. e4 {[%emt 0:00:00]} e5 {[%emt 0:00:00]} 2. Nf3 {[%emt 0:00:00]} Nc6 {[%emt 0:00:00]} 3. d4 {[%emt 0:00:02]} exd4 {[%emt 0:00:12]} 4. Bc4 {[%emt 0:00:10]} Nf6 {[%emt 0:00:19]} 5. O-O {[%emt 0:00:14]} Nxe4 {[%emt 0:00:32]} 6. Re1 {[%emt 0:00:16]} d5 {[%emt 0:00:18]} 7. Bxd5 {[%emt 0:00:12]} Qxd5 {[%emt 0:00:10]} 8. Nc3 {[%emt 0:00:08]} Qa5 {[%emt 0:00:15]} 9. Nxe4 {[%emt 0:00:29]} Be6 {[%emt 0:00:13]} 10. Bg5 {[%emt 0:00:14]} h6 {[%emt 0:06:43]} 11. Bh4 {[%emt 0:00:09]} g5 {[%emt 0:00:05]} 12. Nf6+ {[%emt 0:00:42]} Ke7 {[%emt 0:00:05]} 13. b4 {[%emt 0:00:47]} Qf5 {[%emt 0:27:20]} 14. b5 {[%emt 0:03:23]} gxh4 {[%emt 0:06:22]} 15. bxc6 {[%emt 0:00:21]} bxc6 {[%emt 0:00:52]} 16. Qxd4 {[%emt 0:38:34]} Qxf6 {[%emt 0:03:24]} 17. Qc5+ {[%emt 0:02:17]} Kd8 {[%emt 0:00:19]} 18. Qxc6 {[%emt 0:02:44]} Rc8 {[%emt 0:00:06]} 19. Rad1+ {[%emt 0:06:39]} Bd6 {[%emt 0:00:07]} 20. Ne5 {[%emt 0:02:09]} Ke7 {[%emt 0:01:36]} 21. Nd7 Qf4 {[%emt 0:06:22]} 22. g3 {[%emt 0:11:47]} hxg3 {[%emt 0:00:21]} 23. hxg3 {[%emt 0:01:22]} Rhg8 {[%emt 0:00:11]} 24. Rd3 {[%emt 0:03:49]} Rcd8 {[%emt 0:02:55]} 25. Rf3 {[%emt 0:07:14]} Qd2 {[%emt 0:01:28]} 26. Qe4 {[%emt 0:17:39]} Kxd7 {[%emt 0:00:39]} 0-1

[Event "55th Rubinstein Memorial-B 2019"]
[Site "Polanica-Zdroj"]
[Date "2019.08.24"]
[Round "8.5"]
[White "Drazek, Wladyslaw"]
[Black "Marszk, Kazimierz"]
[Result "1/2-1/2"]
[ECO "C70"]
[WhiteElo "1864"]
[BlackElo "1829"]
[Annotator "NA"]
[PlyCount "126"]
[EventDate "2019.08.17"]
[EventType "swiss"]
[EventCountry "POL"]
[SourceTitle "playchess.com"]
[Source "ChessBase"]
[SourceQuality "1"]
[TimeControl "40/5400+30:1800+30"]

1. e4 e5 2. Nf3 Nc6 3. Bb5 a6 4. Ba4 Be7 5. d3 b5 6. Bb3 d6 7. Nbd2 Nf6 8. a4 Bb7 9. O-O O-O 10. Re1 Na5 11. Qe2 c5 12. h3 Qd7 13. axb5 Nxb3 14. Nxb3 axb5 15. Rxa8 Rxa8 16. Nbd2 h6 17. Nf1 Kh7 18. Ng3 g6 19. Qd2 Bf8 20. Kh2 Bg7 21. Rg1 Qc7 22. Nh4 Ng8 23. Qe2 Bc8 24. Nf1 Bf6 25. Nf3 Be6 26. g4 Bg7 27. Ne3 Ne7 28. h4 d5 29. g5 h5 30. c4 bxc4 31. dxc4 dxe4 32. Nd2 Nf5 33. Nxf5 Bxf5 34. Nf1 Qd7 35. Ne3 Qd3 36. Qd1 Ra1 37. Qf1 Qxf1 38. Rxf1 f6 39. Bd2 Rxf1 40. Nxf1 Be6 41. Ne3 f5 42. Ba5 Kg8 43. Bc7 Kf7 44. Bd6 f4 45. Nd5 Bxd5 46. cxd5 c4 47. Kg2 Ke8 48. Kf1 Kd7 49. Bc5 Ke8 50. Bd6 e3 51. fxe3 fxe3 52. Ke2 e4 53. Kxe3 Bxb2 54. Kxe4 Bc3 55. Bg3 Kd7 56. Bf2 Ba5 57. Bg3 Bb6 58. Be1 Kd6 59. Bg3+ Ke7 60. Be1 Kd7 61. Ke5 c3 62. Bxc3 Bf2 63. Kf6 Kd6 1/2-1/2